[Event "*** Titled Tuesday Blitz"]
[Site "Chess.com"]
[Date "2020.05.26"]
[Round "9"]
[White "annamaja"]
[Black "Dmitry_M1"]
[Result "1/2-1/2"]
[WhiteElo "2250"]
[BlackElo "2386"]
[TimeControl "180+1"]
[EndTime "11:53:02 PDT"]
[Termination "Game drawn by repetition"]

1. e4 {[%clk 0:03:00.9]} 1... c6 {[%clk 0:02:59.8]} 2. d4 {[%clk 0:02:58.9]}
2... d5 {[%clk 0:03:00.4]} 3. e5 {[%clk 0:02:59.1]} 3... Bf5 {[%clk 0:02:59.9]}
4. Nf3 {[%clk 0:02:59.2]} 4... e6 {[%clk 0:03:00.3]} 5. Be2 {[%clk 0:02:59]}
5... Nd7 {[%clk 0:03:00.9]} 6. O-O {[%clk 0:02:55.9]} 6... Ne7 {[%clk
0:03:01.5]} 7. c4 {[%clk 0:02:56.2]} 7... dxc4 {[%clk 0:03:01.2]} 8. Bxc4 {[%clk
0:02:53.9]} 8... Nb6 {[%clk 0:03:01.1]} 9. Bd3 {[%clk 0:02:53.8]} 9... Bg6
{[%clk 0:03:00.3]} 10. Bg5 {[%clk 0:02:49.5]} 10... Qd7 {[%clk 0:02:55.1]} 11.
Nc3 {[%clk 0:02:37.5]} 11... Nf5 {[%clk 0:02:37.5]} 12. Bxf5 {[%clk 0:02:01]}
12... Bxf5 {[%clk 0:02:37.1]} 13. Nh4 {[%clk 0:01:59.5]} 13... Bg6 {[%clk
0:02:31.2]} 14. Nxg6 {[%clk 0:01:58.9]} 14... hxg6 {[%clk 0:02:32.1]} 15. Ne4
{[%clk 0:01:55.8]} 15... Nc8 {[%clk 0:01:31]} 16. Qb3 {[%clk 0:01:31.3]} 16...
Be7 {[%clk 0:01:23]} 17. Bxe7 {[%clk 0:01:17.5]} 17... Qxe7 {[%clk 0:01:22.8]}
18. Nc5 {[%clk 0:01:10.1]} 18... Nb6 {[%clk 0:01:16.9]} 19. a4 {[%clk
0:01:08.3]} 19... Qh4 {[%clk 0:00:43.1]} 20. h3 {[%clk 0:00:40]} 20... Qxd4
{[%clk 0:00:41.2]} 21. Nxb7 {[%clk 0:00:38.6]} 21... Qxe5 {[%clk 0:00:38.9]} 22.
Qb4 {[%clk 0:00:19.2]} 22... c5 {[%clk 0:00:23.2]} 23. Qb5+ {[%clk 0:00:18.5]}
23... Ke7 {[%clk 0:00:19.9]} 24. Nxc5 {[%clk 0:00:17.2]} 24... Rhd8 {[%clk
0:00:16.7]} 25. a5 {[%clk 0:00:16.2]} 25... Nd5 {[%clk 0:00:15.5]} 26. Qb7+
{[%clk 0:00:14.4]} 26... Qc7 {[%clk 0:00:13.4]} 27. Rac1 {[%clk 0:00:13.7]}
27... Qxb7 {[%clk 0:00:12.8]} 28. Nxb7 {[%clk 0:00:14.6]} 28... Rdc8 {[%clk
0:00:13.3]} 29. a6 {[%clk 0:00:12.7]} 29... Kd7 {[%clk 0:00:10]} 30. Rfd1 {[%clk
0:00:12.1]} 30... Rxc1 {[%clk 0:00:09.5]} 31. Rxc1 {[%clk 0:00:12.3]} 31... Rc8
{[%clk 0:00:10.2]} 32. Rxc8 {[%clk 0:00:09.8]} 32... Kxc8 {[%clk 0:00:10.5]} 33.
Nd6+ {[%clk 0:00:10.4]} 33... Kc7 {[%clk 0:00:10.3]} 34. Nxf7 {[%clk 0:00:11]}
34... Kb6 {[%clk 0:00:10.2]} 35. Ne5 {[%clk 0:00:10.4]} 35... Kxa6 {[%clk
0:00:09.4]} 36. Nxg6 {[%clk 0:00:10.7]} 36... Kb5 {[%clk 0:00:10]} 37. Nf8
{[%clk 0:00:10.9]} 37... Nc7 {[%clk 0:00:09.1]} 38. g4 {[%clk 0:00:10.8]} 38...
Kb4 {[%clk 0:00:09.3]} 39. h4 {[%clk 0:00:11.2]} 39... Kb3 {[%clk 0:00:09.8]}
40. g5 {[%clk 0:00:11.6]} 40... Kxb2 {[%clk 0:00:10]} 41. h5 {[%clk 0:00:12.2]}
41... Ne8 {[%clk 0:00:07.6]} 42. h6 {[%clk 0:00:12.7]} 42... gxh6 {[%clk
0:00:07.9]} 43. gxh6 {[%clk 0:00:09.3]} 43... Nf6 {[%clk 0:00:08.3]} 44. Nxe6
{[%clk 0:00:06.5]} 44... a5 {[%clk 0:00:08.7]} 45. Nc5 {[%clk 0:00:06.2]} 45...
Kc3 {[%clk 0:00:07.7]} 46. f4 {[%clk 0:00:03.9]} 46... Kb4 {[%clk 0:00:07.4]}
47. Nd3+ {[%clk 0:00:03.7]} 47... Kc3 {[%clk 0:00:06.9]} 48. Nc1 {[%clk
0:00:04.1]} 48... a4 {[%clk 0:00:06.6]} 49. f5 {[%clk 0:00:03.3]} 49... Kc2
{[%clk 0:00:07]} 50. Na2 {[%clk 0:00:03.5]} 50... Kb2 {[%clk 0:00:06.9]} 51. Nb4
{[%clk 0:00:04]} 51... Kb3 {[%clk 0:00:07]} 52. Nd3 {[%clk 0:00:04.2]} 52... Kc3
{[%clk 0:00:07.3]} 53. Nc1 {[%clk 0:00:04.3]} 53... Kc2 {[%clk 0:00:06.9]} 54.
Na2 {[%clk 0:00:04.2]} 54... Kb3 {[%clk 0:00:07.1]} 55. Nc1+ {[%clk 0:00:04.5]}
55... Kb2 {[%clk 0:00:07.5]} 56. Nd3+ {[%clk 0:00:04.8]} 56... Kc3 {[%clk
0:00:07.7]} 57. Nc1 {[%clk 0:00:04.2]} 1/2-1/2

[Event "*** Titled Tuesday Blitz"]
[Site "Chess.com"]
[Date "2020.05.26"]
[Round "9"]
[White "ChessyInstinct"]
[Black "iLuusions"]
[Result "1-0"]
[WhiteElo "2422"]
[BlackElo "2551"]
[TimeControl "180+1"]
[EndTime "11:53:07 PDT"]
[Termination "ChessyInstinct won by resignation"]

1. d4 {[%clk 0:03:00.9]} 1... Nf6 {[%clk 0:02:58.9]} 2. c4 {[%clk 0:03:01]} 2...
e6 {[%clk 0:02:59.8]} 3. g3 {[%clk 0:03:01]} 3... d5 {[%clk 0:03:00.7]} 4. Nf3
{[%clk 0:03:01.5]} 4... dxc4 {[%clk 0:02:58.8]} 5. Bg2 {[%clk 0:03:00.3]} 5...
Nc6 {[%clk 0:02:58.6]} 6. Qa4 {[%clk 0:02:43.6]} 6... Bb4+ {[%clk 0:02:54.9]} 7.
Bd2 {[%clk 0:02:31.1]} 7... Nd5 {[%clk 0:02:55]} 8. a3 {[%clk 0:02:27.8]} 8...
Bxd2+ {[%clk 0:02:48.2]} 9. Nbxd2 {[%clk 0:02:28.7]} 9... Nb6 {[%clk 0:02:28.4]}
10. Qb5 {[%clk 0:01:24.1]} 10... Qd5 {[%clk 0:02:23.2]} 11. Qc5 {[%clk
0:01:16.9]} 11... Qxc5 {[%clk 0:02:20.1]} 12. dxc5 {[%clk 0:01:17.8]} 12... Na4
{[%clk 0:02:20.9]} 13. Nxc4 {[%clk 0:01:09.2]} 13... Nxc5 {[%clk 0:02:20.9]} 14.
b4 {[%clk 0:01:07.3]} 14... Nb3 {[%clk 0:02:10.3]} 15. Rd1 {[%clk 0:00:26.2]}
15... a5 {[%clk 0:01:58.6]} 16. b5 {[%clk 0:00:15.6]} 16... Ne7 {[%clk
0:01:58.6]} 17. O-O {[%clk 0:00:09.8]} 17... f6 {[%clk 0:01:56.2]} 18. Rb1
{[%clk 0:00:04]} 18... a4 {[%clk 0:01:47.3]} 19. Nfd2 {[%clk 0:00:01.8]} 19...
Nc5 {[%clk 0:01:20.3]} 20. Rfc1 {[%clk 0:00:01.6]} 20... Nd7 {[%clk 0:00:46.3]}
21. Ne3 {[%clk 0:00:01.8]} 21... Kd8 {[%clk 0:00:40.7]} 22. Ndc4 {[%clk
0:00:02.1]} 22... Rb8 {[%clk 0:00:39.4]} 23. Rd1 {[%clk 0:00:02.2]} 23... Ke8
{[%clk 0:00:38.3]} 24. b6 {[%clk 0:00:02.2]} 24... Nxb6 {[%clk 0:00:29.5]} 25.
Nxb6 {[%clk 0:00:02.5]} 25... cxb6 {[%clk 0:00:30.4]} 26. Rxb6 {[%clk
0:00:02.9]} 26... Kf7 {[%clk 0:00:30.2]} 27. Rdb1 {[%clk 0:00:02.7]} 27... Rd8
{[%clk 0:00:29]} 28. Bxb7 {[%clk 0:00:02.6]} 28... Bxb7 {[%clk 0:00:23.7]} 29.
Rxb7 {[%clk 0:00:03.5]} 29... Rxb7 {[%clk 0:00:23.9]} 30. Rxb7 {[%clk
0:00:04.4]} 30... Rd2 {[%clk 0:00:24.5]} 31. Kf1 {[%clk 0:00:03]} 31... e5
{[%clk 0:00:23.7]} 32. Ra7 {[%clk 0:00:02.4]} 32... Ra2 {[%clk 0:00:23.1]} 33.
Nf5 {[%clk 0:00:02.2]} 33... Ra1+ {[%clk 0:00:21.3]} 34. Kg2 {[%clk 0:00:02.2]}
34... Rxa3 {[%clk 0:00:21.4]} 35. Nxe7 {[%clk 0:00:02.7]} 35... Ke6 {[%clk
0:00:21.7]} 36. Nc6 {[%clk 0:00:02.7]} 36... g6 {[%clk 0:00:22]} 37. Na5 {[%clk
0:00:01.4]} 37... Ra2 {[%clk 0:00:22.3]} 38. Nc4 {[%clk 0:00:01.5]} 38... Kd5
{[%clk 0:00:22.4]} 39. Nb6+ {[%clk 0:00:01.7]} 39... Ke6 {[%clk 0:00:21]} 40.
Rxa4 {[%clk 0:00:02.2]} 40... Rb2 {[%clk 0:00:21.9]} 41. Nc4 {[%clk 0:00:02.1]}
41... Kf5 {[%clk 0:00:22.7]} 42. Ne3+ {[%clk 0:00:02.4]} 42... Kg5 {[%clk
0:00:22.7]} 43. Kf1 {[%clk 0:00:02.8]} 43... f5 {[%clk 0:00:22.9]} 44. h4+
{[%clk 0:00:03.7]} 44... Kh6 {[%clk 0:00:22.9]} 45. Rc4 {[%clk 0:00:03.1]} 45...
Rb1+ {[%clk 0:00:23]} 46. Kg2 {[%clk 0:00:03.4]} 46... Rb7 {[%clk 0:00:23.9]}
47. Rc5 {[%clk 0:00:03.6]} 47... Re7 {[%clk 0:00:23.3]} 48. Nc4 {[%clk
0:00:03.9]} 48... e4 {[%clk 0:00:23]} 49. e3 {[%clk 0:00:04.5]} 49... Rd7 {[%clk
0:00:22.2]} 50. Rc6 {[%clk 0:00:04.9]} 50... Rd1 {[%clk 0:00:22.5]} 51. Ne5
{[%clk 0:00:05]} 51... Kh5 {[%clk 0:00:20.5]} 52. Rc7 {[%clk 0:00:04.9]} 52...
h6 {[%clk 0:00:20.8]} 53. Rc6 {[%clk 0:00:04.9]} 53... g5 {[%clk 0:00:17.2]} 54.
Nf7 {[%clk 0:00:03.1]} 54... f4 {[%clk 0:00:13]} 55. Rxh6+ {[%clk 0:00:02.7]}
55... Kg4 {[%clk 0:00:13.5]} 56. Ne5+ {[%clk 0:00:02.2]} 56... Kf5 {[%clk
0:00:13.5]} 57. exf4 {[%clk 0:00:02.8]} 57... gxf4 {[%clk 0:00:14.2]} 58. Rh5+
{[%clk 0:00:03.2]} 58... Kf6 {[%clk 0:00:14.2]} 59. gxf4 {[%clk 0:00:03.8]}
59... Rd8 {[%clk 0:00:14.3]} 60. Rh6+ {[%clk 0:00:03.9]} 60... Kf5 {[%clk
0:00:14.5]} 61. Rh5+ {[%clk 0:00:04]} 61... Kxf4 {[%clk 0:00:14.6]} 62. Rg5
{[%clk 0:00:04.9]} 62... e3 {[%clk 0:00:12.7]} 63. Ng6+ {[%clk 0:00:03.3]} 63...
Ke4 {[%clk 0:00:12.5]} 64. Re5+ {[%clk 0:00:03.9]} 64... Kd4 {[%clk 0:00:13]}
65. Rxe3 {[%clk 0:00:04.1]} 65... Rg8 {[%clk 0:00:13.9]} 66. Rg3 {[%clk
0:00:04.4]} 66... Ke4 {[%clk 0:00:13.4]} 67. f3+ {[%clk 0:00:04.4]} 67... Kf5
{[%clk 0:00:14.3]} 68. h5 {[%clk 0:00:04.4]} 68... Kf6 {[%clk 0:00:15.2]} 69.
Nf4 {[%clk 0:00:03.5]} 69... Rh8 {[%clk 0:00:14.8]} 70. Nd5+ {[%clk 0:00:03.7]}
70... Kf5 {[%clk 0:00:15.1]} 71. Rh3 {[%clk 0:00:03.8]} 1-0

[Event "*** Titled Tuesday Blitz"]
[Site "Chess.com"]
[Date "2020.05.26"]
[Round "9"]
[White "Chigorinetz"]
[Black "GMStefanova"]
[Result "1-0"]
[WhiteElo "2525"]
[BlackElo "2626"]
[TimeControl "180+1"]
[EndTime "11:53:10 PDT"]
[Termination "Chigorinetz won by resignation"]

1. e4 {[%clk 0:03:00.9]} 1... c6 {[%clk 0:02:59.8]} 2. d4 {[%clk 0:03:00.1]}
2... d5 {[%clk 0:03:00.1]} 3. f3 {[%clk 0:03:00.1]} 3... dxe4 {[%clk 0:02:50]}
4. fxe4 {[%clk 0:02:56.9]} 4... e5 {[%clk 0:02:50.1]} 5. Nf3 {[%clk 0:02:56.9]}
5... exd4 {[%clk 0:02:48.9]} 6. Bc4 {[%clk 0:02:56.6]} 6... Be6 {[%clk
0:02:39.2]} 7. Bxe6 {[%clk 0:02:52.9]} 7... fxe6 {[%clk 0:02:39.1]} 8. Qxd4
{[%clk 0:02:53.1]} 8... Qxd4 {[%clk 0:02:24.2]} 9. Nxd4 {[%clk 0:02:54]} 9... e5
{[%clk 0:02:15.2]} 10. Ne6 {[%clk 0:02:47.5]} 10... Na6 {[%clk 0:02:14.2]} 11.
Bg5 {[%clk 0:02:20.1]} 11... Nf6 {[%clk 0:02:07.5]} 12. Nd2 {[%clk 0:02:03]}
12... Kf7 {[%clk 0:01:59.3]} 13. Nxf8 {[%clk 0:02:00.5]} 13... Rhxf8 {[%clk
0:01:58.7]} 14. Ke2 {[%clk 0:01:56]} 14... Ke6 {[%clk 0:01:57.7]} 15. Rhf1
{[%clk 0:01:50.1]} 15... Nc5 {[%clk 0:01:48.4]} 16. Bxf6 {[%clk 0:01:45.6]}
16... Rxf6 {[%clk 0:01:48.1]} 17. Rxf6+ {[%clk 0:01:43.7]} 17... Kxf6 {[%clk
0:01:47.5]} 18. Ke3 {[%clk 0:01:42]} 18... Ke6 {[%clk 0:01:44.1]} 19. Rf1 {[%clk
0:01:40.1]} 19... Rd8 {[%clk 0:01:42.4]} 20. Rf3 {[%clk 0:01:38.4]} 20... h6
{[%clk 0:01:36.1]} 21. h4 {[%clk 0:01:37.8]} 21... g6 {[%clk 0:01:30.5]} 22. b3
{[%clk 0:01:35.6]} 22... Ke7 {[%clk 0:01:28.4]} 23. h5 {[%clk 0:01:24.4]} 23...
Rg8 {[%clk 0:01:20.9]} 24. Rg3 {[%clk 0:01:18.9]} 24... g5 {[%clk 0:01:14.5]}
25. Rf3 {[%clk 0:01:17.6]} 25... Nd7 {[%clk 0:01:12.5]} 26. Nf1 {[%clk
0:01:09.3]} 26... Nf6 {[%clk 0:01:08]} 27. Ng3 {[%clk 0:01:08.4]} 27... Ke6
{[%clk 0:01:07.5]} 28. Ke2 {[%clk 0:01:00.5]} 28... Rd8 {[%clk 0:01:03.9]} 29.
Rd3 {[%clk 0:00:59.9]} 29... Rxd3 {[%clk 0:01:00.6]} 30. Kxd3 {[%clk 0:00:58.1]}
30... b5 {[%clk 0:00:59.3]} 31. b4 {[%clk 0:00:53.6]} 31... a6 {[%clk
0:00:54.4]} 32. c4 {[%clk 0:00:48.8]} 32... Kd7 {[%clk 0:00:54]} 33. Kc3 {[%clk
0:00:42.5]} 33... Kc7 {[%clk 0:00:51.2]} 34. Kb3 {[%clk 0:00:38.4]} 34... Kb6
{[%clk 0:00:49.2]} 35. c5+ {[%clk 0:00:36.2]} 35... Kc7 {[%clk 0:00:47.9]} 36.
Kc3 {[%clk 0:00:36.5]} 36... Kd7 {[%clk 0:00:47.4]} 37. Kd3 {[%clk 0:00:36.4]}
37... Ke6 {[%clk 0:00:47.5]} 38. Ke3 {[%clk 0:00:36.8]} 38... Kd7 {[%clk
0:00:47.2]} 39. Kf2 {[%clk 0:00:35.5]} 39... Ke6 {[%clk 0:00:46.9]} 40. Kf3
{[%clk 0:00:35.4]} 40... Kd7 {[%clk 0:00:45.1]} 41. Nf5 {[%clk 0:00:27.2]} 41...
Nxh5 {[%clk 0:00:43.5]} 42. Nxh6 {[%clk 0:00:26.8]} 42... Ke6 {[%clk 0:00:39.6]}
43. g3 {[%clk 0:00:19.4]} 43... Nf6 {[%clk 0:00:37.9]} 44. Ng4 {[%clk
0:00:19.2]} 44... Nd7 {[%clk 0:00:36.4]} 45. Ne3 {[%clk 0:00:18.8]} 45... a5
{[%clk 0:00:35.6]} 46. bxa5 {[%clk 0:00:12]} 46... Nxc5 {[%clk 0:00:35.1]} 47.
Kg4 {[%clk 0:00:12.2]} 47... Kf6 {[%clk 0:00:29.3]} 48. Kh5 {[%clk 0:00:11.2]}
48... Na6 {[%clk 0:00:23.7]} 49. Ng4+ {[%clk 0:00:10.6]} 49... Ke6 {[%clk
0:00:23.6]} 50. Kxg5 {[%clk 0:00:10.6]} 50... c5 {[%clk 0:00:23.4]} 51. Ne3
{[%clk 0:00:09.7]} 51... c4 {[%clk 0:00:22.8]} 52. Kh6 {[%clk 0:00:09.5]} 52...
c3 {[%clk 0:00:18.9]} 53. g4 {[%clk 0:00:09]} 53... Nc5 {[%clk 0:00:12.2]} 54.
g5 {[%clk 0:00:08.3]} 54... Kf7 {[%clk 0:00:12.4]} 55. Kh7 {[%clk 0:00:07.2]}
55... Nxe4 {[%clk 0:00:08.3]} 56. g6+ {[%clk 0:00:06.4]} 56... Kf6 {[%clk
0:00:07.9]} 57. a6 {[%clk 0:00:05.8]} 57... Ke6 {[%clk 0:00:08.8]} 58. g7 {[%clk
0:00:04]} 58... Nf6+ {[%clk 0:00:08.4]} 59. Kg6 {[%clk 0:00:04.9]} 59... b4
{[%clk 0:00:07.7]} 60. a7 {[%clk 0:00:05]} 1-0

[Event "*** Titled Tuesday Blitz"]
[Site "Chess.com"]
[Date "2020.05.26"]
[Round "9"]
[White "chessdjw"]
[Black "Munkhzul_Turmunkh"]
[Result "1-0"]
[WhiteElo "2718"]
[BlackElo "2577"]
[TimeControl "180+1"]
[EndTime "11:53:11 PDT"]
[Termination "chessdjw won by resignation"]

1. e4 {[%clk 0:03:00.9]} 1... c5 {[%clk 0:02:58.7]} 2. Nf3 {[%clk 0:03:01]} 2...
d6 {[%clk 0:02:58]} 3. Bb5+ {[%clk 0:03:00.2]} 3... Nd7 {[%clk 0:02:57.5]} 4. a4
{[%clk 0:02:59.4]} 4... Nf6 {[%clk 0:02:53]} 5. Nc3 {[%clk 0:02:57.1]} 5... a6
{[%clk 0:02:51.2]} 6. Be2 {[%clk 0:02:52.5]} 6... e6 {[%clk 0:02:44.7]} 7. O-O
{[%clk 0:02:46.7]} 7... Be7 {[%clk 0:02:39.1]} 8. d4 {[%clk 0:02:46.4]} 8...
cxd4 {[%clk 0:02:38.5]} 9. Qxd4 {[%clk 0:02:47.3]} 9... O-O {[%clk 0:02:30]} 10.
Rd1 {[%clk 0:02:46.6]} 10... Qc7 {[%clk 0:02:22.7]} 11. Be3 {[%clk 0:02:13.8]}
11... b6 {[%clk 0:02:21.2]} 12. Nd2 {[%clk 0:02:11.5]} 12... Bb7 {[%clk
0:02:16.3]} 13. Nc4 {[%clk 0:02:08.6]} 13... e5 {[%clk 0:02:05]} 14. Qd3 {[%clk
0:02:08.1]} 14... Nc5 {[%clk 0:02:01.3]} 15. Bxc5 {[%clk 0:02:08]} 15... dxc5
{[%clk 0:02:02.2]} 16. Nd5 {[%clk 0:01:53.3]} 16... Bxd5 {[%clk 0:01:53.7]} 17.
exd5 {[%clk 0:01:52.9]} 17... Bd6 {[%clk 0:01:45.2]} 18. Qb3 {[%clk 0:01:45.3]}
18... Nd7 {[%clk 0:01:36.6]} 19. g3 {[%clk 0:01:17.6]} 19... f5 {[%clk
0:01:31.8]} 20. Bf1 {[%clk 0:01:13.2]} 20... e4 {[%clk 0:01:25.7]} 21. f4 {[%clk
0:01:11.1]} 21... exf3 {[%clk 0:01:18.4]} 22. Qxf3 {[%clk 0:01:08.6]} 22... f4
{[%clk 0:01:14.7]} 23. Qg4 {[%clk 0:00:48.9]} 23... Rf6 {[%clk 0:00:59.1]} 24.
Re1 {[%clk 0:00:45.5]} 24... Rg6 {[%clk 0:00:49.3]} 25. Qh5 {[%clk 0:00:36.1]}
25... fxg3 {[%clk 0:00:43.9]} 26. h4 {[%clk 0:00:35]} 26... g2 {[%clk
0:00:38.7]} 27. Bxg2 {[%clk 0:00:34.7]} 27... Rf8 {[%clk 0:00:34.5]} 28. Kh1
{[%clk 0:00:31.8]} 28... Bg3 {[%clk 0:00:25.5]} 29. d6 {[%clk 0:00:28.9]} 29...
Qd8 {[%clk 0:00:22.5]} 30. Re7 {[%clk 0:00:21.8]} 30... Nf6 {[%clk 0:00:12.1]}
31. Qd1 {[%clk 0:00:17.5]} 31... Bxh4 {[%clk 0:00:11.3]} 32. Qd3 {[%clk
0:00:15.7]} 32... Bf2 {[%clk 0:00:10.9]} 33. Bc6 {[%clk 0:00:14.5]} 33... Rh6+
{[%clk 0:00:10]} 34. Kg2 {[%clk 0:00:14]} 34... Bd4 {[%clk 0:00:07]} 35. Rh1
{[%clk 0:00:13.9]} 35... Rg6+ {[%clk 0:00:06.5]} 36. Kf1 {[%clk 0:00:12.6]}
36... Nd5+ {[%clk 0:00:06]} 37. Ke2 {[%clk 0:00:12.8]} 37... Nxe7 {[%clk
0:00:05.9]} 38. Qe4 {[%clk 0:00:12.3]} 38... Nxc6 {[%clk 0:00:05.6]} 39. Qd5+
{[%clk 0:00:12.4]} 39... Kh8 {[%clk 0:00:05.1]} 40. Qxc6 {[%clk 0:00:11]} 40...
Re8+ {[%clk 0:00:05.1]} 41. Kd2 {[%clk 0:00:10.4]} 41... Qg5+ {[%clk 0:00:05]}
42. Kd1 {[%clk 0:00:09.2]} 42... Qg4+ {[%clk 0:00:05]} 43. Kd2 {[%clk
0:00:09.7]} 43... Qf4+ {[%clk 0:00:04.8]} 44. Kd3 {[%clk 0:00:08.8]} 44... Qg3+
{[%clk 0:00:04.4]} 45. Kd2 {[%clk 0:00:09.1]} 45... Qg2+ {[%clk 0:00:04.9]} 46.
Qxg2 {[%clk 0:00:07.2]} 46... Rxg2+ {[%clk 0:00:05.8]} 47. Kd3 {[%clk
0:00:07.5]} 47... g6 {[%clk 0:00:05.7]} 48. Nxb6 {[%clk 0:00:06.9]} 48... Rg3+
{[%clk 0:00:05.8]} 49. Kc4 {[%clk 0:00:07.3]} 49... h5 {[%clk 0:00:06.1]} 50. d7
{[%clk 0:00:07.7]} 50... Rd8 {[%clk 0:00:06.3]} 51. Re1 {[%clk 0:00:08.4]} 51...
Kg7 {[%clk 0:00:05.5]} 52. Re8 {[%clk 0:00:08.4]} 52... Rxd7 {[%clk 0:00:05.9]}
53. Nxd7 {[%clk 0:00:08.3]} 53... h4 {[%clk 0:00:06.4]} 54. c3 {[%clk
0:00:08.1]} 54... Bf2 {[%clk 0:00:05.4]} 55. Re7+ {[%clk 0:00:08.1]} 55... Kh6
{[%clk 0:00:05.3]} 56. Nf6 {[%clk 0:00:08.2]} 56... h3 {[%clk 0:00:05.6]} 57.
Rh7+ {[%clk 0:00:08.4]} 57... Kg5 {[%clk 0:00:04.7]} 58. Ne4+ {[%clk 0:00:08.9]}
58... Kg4 {[%clk 0:00:04.9]} 59. Nxf2+ {[%clk 0:00:09.3]} 59... Kf3 {[%clk
0:00:05.2]} 60. Nxh3 {[%clk 0:00:09.8]} 60... Rg4+ {[%clk 0:00:05.3]} 61. Kxc5
{[%clk 0:00:09.1]} 1-0

[Event "*** Titled Tuesday Blitz"]
[Site "Chess.com"]
[Date "2020.05.26"]
[Round "9"]
[White "Shankovskyi"]
[Black "S_Kalvaitis"]
[Result "1-0"]
[WhiteElo "2521"]
[BlackElo "2316"]
[TimeControl "180+1"]
[EndTime "11:53:11 PDT"]
[Termination "Shankovskyi won by checkmate"]

1. e4 {[%clk 0:03:00.9]} 1... e5 {[%clk 0:02:59.1]} 2. Nf3 {[%clk 0:03:01.3]}
2... Nc6 {[%clk 0:02:59.5]} 3. Bc4 {[%clk 0:03:01.8]} 3... Nf6 {[%clk
0:02:59.4]} 4. Ng5 {[%clk 0:03:01.9]} 4... d5 {[%clk 0:02:59.7]} 5. exd5 {[%clk
0:03:02.6]} 5... Na5 {[%clk 0:03:00.4]} 6. Bb5+ {[%clk 0:03:03.2]} 6... c6
{[%clk 0:03:01.1]} 7. dxc6 {[%clk 0:03:04.1]} 7... bxc6 {[%clk 0:03:01.9]} 8.
Bd3 {[%clk 0:03:04.8]} 8... Nd5 {[%clk 0:02:56.7]} 9. Nf3 {[%clk 0:03:04.7]}
9... Bd6 {[%clk 0:02:56.7]} 10. O-O {[%clk 0:03:03.1]} 10... O-O {[%clk
0:02:56.9]} 11. Re1 {[%clk 0:03:01.9]} 11... f5 {[%clk 0:02:55.5]} 12. Nxe5
{[%clk 0:03:01]} 12... f4 {[%clk 0:02:55.8]} 13. Qh5 {[%clk 0:02:35.5]} 13...
Nf6 {[%clk 0:02:38.9]} 14. Qh4 {[%clk 0:02:13.1]} 14... Re8 {[%clk 0:02:20.6]}
15. Nf3 {[%clk 0:02:10.6]} 15... Bg4 {[%clk 0:02:10.3]} 16. Nc3 {[%clk
0:01:07.1]} 16... Bxf3 {[%clk 0:01:38.4]} 17. Rxe8+ {[%clk 0:01:05.8]} 17...
Qxe8 {[%clk 0:01:39.3]} 18. gxf3 {[%clk 0:01:06.5]} 18... Qe1+ {[%clk
0:01:38.6]} 19. Kg2 {[%clk 0:01:06.5]} 19... Re8 {[%clk 0:01:29.4]} 20. b4
{[%clk 0:01:05.7]} 20... Re5 {[%clk 0:00:44.6]} 21. Bb2 {[%clk 0:00:57.8]} 21...
Qxd2 {[%clk 0:00:40.6]} 22. Rd1 {[%clk 0:00:32.5]} 22... Qxd1 {[%clk 0:00:21.1]}
23. Nxd1 {[%clk 0:00:33.4]} 23... Rh5 {[%clk 0:00:21.6]} 24. Bxf6 {[%clk
0:00:32.5]} 24... Rxh4 {[%clk 0:00:21.3]} 25. Bxh4 {[%clk 0:00:33.4]} 25... Bxb4
{[%clk 0:00:21.8]} 26. Bd8 {[%clk 0:00:20.2]} 26... Nb7 {[%clk 0:00:20.8]} 27.
Bc7 {[%clk 0:00:20.4]} 27... g5 {[%clk 0:00:21.1]} 28. Nb2 {[%clk 0:00:18.9]}
28... h6 {[%clk 0:00:19.3]} 29. Bc4+ {[%clk 0:00:18.7]} 29... Kg7 {[%clk
0:00:19.5]} 30. Nd3 {[%clk 0:00:19.6]} 30... Be7 {[%clk 0:00:19]} 31. Be5+
{[%clk 0:00:19.9]} 31... Kg6 {[%clk 0:00:18.4]} 32. Bd4 {[%clk 0:00:18.3]} 32...
c5 {[%clk 0:00:17.6]} 33. Bc3 {[%clk 0:00:15.8]} 33... a5 {[%clk 0:00:16.4]} 34.
Bd5 {[%clk 0:00:15.1]} 34... Nd6 {[%clk 0:00:13]} 35. Bxa5 {[%clk 0:00:15.5]}
35... Nb5 {[%clk 0:00:13.2]} 36. c4 {[%clk 0:00:09.5]} 36... Nd4 {[%clk
0:00:12]} 37. Bc3 {[%clk 0:00:09.3]} 37... Ne2 {[%clk 0:00:11.1]} 38. Be5 {[%clk
0:00:09]} 38... Kf5 {[%clk 0:00:09.1]} 39. a4 {[%clk 0:00:08.2]} 39... Bd8
{[%clk 0:00:08.5]} 40. Be4+ {[%clk 0:00:07.8]} 40... Ke6 {[%clk 0:00:08.2]} 41.
Bg7 {[%clk 0:00:08.7]} 41... h5 {[%clk 0:00:07.3]} 42. Nxc5+ {[%clk 0:00:09.2]}
42... Kf7 {[%clk 0:00:07.8]} 43. Be5 {[%clk 0:00:08.8]} 43... g4 {[%clk
0:00:08.2]} 44. Bd5+ {[%clk 0:00:09]} 44... Kg6 {[%clk 0:00:07.9]} 45. Be4+
{[%clk 0:00:07.7]} 45... Kf7 {[%clk 0:00:08.2]} 46. Bd3 {[%clk 0:00:08.1]} 46...
Nc1 {[%clk 0:00:04.6]} 47. Bc2 {[%clk 0:00:08.1]} 47... Ne2 {[%clk 0:00:04.2]}
48. Ne4 {[%clk 0:00:07.5]} 48... g3 {[%clk 0:00:01.8]} 49. hxg3 {[%clk
0:00:06.7]} 49... fxg3 {[%clk 0:00:02.3]} 50. fxg3 {[%clk 0:00:07.5]} 50... h4
{[%clk 0:00:02.9]} 51. g4 {[%clk 0:00:07.1]} 51... Bg5 {[%clk 0:00:02.6]} 52.
Nxg5+ {[%clk 0:00:05.4]} 52... Ke7 {[%clk 0:00:03.5]} 53. Ne4 {[%clk 0:00:06.1]}
53... Nf4+ {[%clk 0:00:03.9]} 54. Bxf4 {[%clk 0:00:06]} 54... h3+ {[%clk
0:00:04.8]} 55. Kg3 {[%clk 0:00:05.6]} 55... Kd7 {[%clk 0:00:05.7]} 56. Kh2
{[%clk 0:00:06.3]} 56... Ke7 {[%clk 0:00:06.6]} 57. Kxh3 {[%clk 0:00:07.2]}
57... Ke6 {[%clk 0:00:07.1]} 58. Kg3 {[%clk 0:00:08.1]} 58... Kd7 {[%clk
0:00:08]} 59. Bd3 {[%clk 0:00:08.9]} 59... Kc6 {[%clk 0:00:08.9]} 60. Be2 {[%clk
0:00:09.8]} 60... Kb7 {[%clk 0:00:09.8]} 61. Bf1 {[%clk 0:00:10.7]} 61... Ka6
{[%clk 0:00:10.7]} 62. Bg2 {[%clk 0:00:11.6]} 62... Kb7 {[%clk 0:00:11.5]} 63.
g5 {[%clk 0:00:12.5]} 63... Kc6 {[%clk 0:00:12.4]} 64. g6 {[%clk 0:00:13.4]}
64... Kb7 {[%clk 0:00:13.2]} 65. g7 {[%clk 0:00:14.3]} 65... Kc6 {[%clk
0:00:14.1]} 66. g8=Q {[%clk 0:00:15.2]} 66... Kb7 {[%clk 0:00:15]} 67. Qg6
{[%clk 0:00:16.1]} 67... Kc8 {[%clk 0:00:14.9]} 68. Qg5 {[%clk 0:00:17]} 68...
Kd7 {[%clk 0:00:15.5]} 69. Qe5 {[%clk 0:00:17.2]} 69... Kd8 {[%clk 0:00:15.8]}
70. Qg7 {[%clk 0:00:15.4]} 70... Ke8 {[%clk 0:00:16.7]} 71. Nf6+ {[%clk
0:00:15.5]} 71... Kd8 {[%clk 0:00:17.6]} 72. Qd7# {[%clk 0:00:16]} 1-0